bitfinex/quotes_ETHUSD_20250520
["timestamp","ask_amount","ask_price","bid_price","bid_amount"]
[1747752693327,4.04923874,2469.6,2469.5,6.0599]
[1747752693998,4.04923874,2469.6,2469.5,3.0205]
[1747752694196,4.04923874,2469.6,2469.5,0.7935]
[1747752694404,4.04923874,2469.6,2469.5,2.8545]
[1747752694691,4.04923874,2469.6,2469.5,10.9665]
[1747752694864,4.04923874,2469.6,2469.5,12.024741]
[1747752695070,4.04923874,2469.6,2469.5,8.9055]
[1747752696462,4.04923874,2469.6,2469.5,10.77389165]
[1747752697672,4.04923874,2469.6,2469.5,8.9055]
[1747752698293,4.04923874,2469.6,2469.5,8.9075]
[1747752701983,4.04923874,2469.6,2469.5,25.290749]
[1747752702383,0.7904,2470.5,2469.5,23.067172]
[1747752702598,4.04901204,2469.8,2469.5,8.9075]
[1747752702783,4.04901204,2469.8,2469.6,0.89075]
[1747752702997,4.04907478,2469.7,2469.6,1.44075]
[1747752703183,4.04907478,2469.7,2469.6,14.676201]
[1747752703388,4.04907478,2469.7,2469.6,14.126201]
[1747752703616,4.04907478,2469.7,2469.6,9.00575]
[1747752703802,4.04907478,2469.7,2469.6,8.115]
[1747752704002,4.04907478,2469.7,2469.6,12.7417]
[1747752705382,4.04907478,2469.7,2469.6,8.115]
[1747752705778,4.04923874,2469.6,2469.5,0.7935]
[1747752705983,4.04956669,2469.4,2469.3,17.465]
[1747752706306,4.04956669,2469.4,2469.3,25.58]
[1747752706496,4.04956669,2469.4,2469.3,17.465]
[1747752706686,4.04956669,2469.4,2469.3,25.58]
[1747752707919,4.82395256,2470.3,2469.5,1.3061]
[1747752707920,4.04932077,2469.6,2469.5,1.3061]
[1747752708116,4.04932077,2469.6,2469.5,13.074488]
[1747752708317,4.04932077,2469.6,2469.5,15.031639]
[1747752708520,4.04932077,2469.6,2469.5,8.8711]
[1747752708720,4.04932077,2469.6,2469.5,15.2582]
[1747752708920,4.04932077,2469.6,2469.5,7.1432]
[1747752709225,4.04932077,2469.6,2469.5,8.8711]
[1747752709430,0.8285,2470.6,2469.6,0.55]
[1747752709591,0.8285,2470.6,2469.8,0.55]
[1747752709592,4.04759977,2470.6,2469.8,0.55]
[1747752709791,4.04874691,2469.9,2469.8,0.55]
[1747752710020,4.87567714,2470.9,2469.9,0.7577]
[1747752710021,4.04792746,2470.4,2469.9,0.7577]
[1747752710298,4.04841909,2470.1,2470.0,10.47502634]
[1747752710522,4.04841909,2470.1,2470.0,19.07931534]
[1747752710709,4.04841909,2470.1,2470.0,10.821983]
[1747752711042,4.04841909,2470.1,2470.0,8.115]
[1747752711551,4.04858299,2470.0,2469.9,0.7577]
[1747752711747,4.87567714,2470.9,2469.9,15.041731]
[1747752712045,4.04841909,2470.1,2470.0,0.55]
[1747752712262,4.04841909,2470.1,2470.0,7.38382699]
[1747752713119,4.04841909,2470.1,2470.0,4.27754]
[1747752714042,4.04841909,2470.1,2470.0,12.39254]
[1747752714549,4.04858299,2470.0,2469.9,3.7577]
[1747752714848,4.04858299,2470.0,2469.9,11.8727]
[1747752715149,4.04850892,2470.1,2469.9,20.06031199]
[1747752715348,4.04850892,2470.1,2470.0,15.605514]
[1747752716577,4.04850892,2470.1,2470.0,12.767587]
[1747752716865,4.04850892,2470.1,2470.0,6.17323549]
[1747752717365,4.04850892,2470.1,2470.0,4.81758649]
[1747752717768,4.04850892,2470.1,2470.0,4.59923549]
[1747752717932,4.04850892,2470.1,2470.0,4.33417749]
[1747752718132,4.04850892,2470.1,2470.0,4.11172649]
[1747752718334,4.04850892,2470.1,2470.0,0.38535149]
[1747752718643,4.04850892,2470.1,2470.0,8.49035149]
[1747752718971,4.04850892,2470.1,2470.0,10.51978149]
[1747752719662,4.04850892,2470.1,2470.0,12.03571075]
[1747752719830,4.04850892,2470.1,2470.0,10.51978149]
[1747752720447,4.04850892,2470.1,2470.0,0.38535149]
[1747752720633,4.04850892,2470.1,2470.0,8.49035149]
[1747752721167,4.04850892,2470.1,2470.0,14.98754149]
[1747752722343,4.04850892,2470.1,2470.0,12.33883249]
[1747752722562,4.04850892,2470.1,2470.0,13.98852215]
[1747752723371,4.04727213,2470.8,2470.0,14.53852215]
[1747752723583,4.04727213,2470.8,2470.0,9.04035149]
[1747752723584,4.04841909,2470.1,2470.0,9.04035149]
[1747752723785,4.04841909,2470.1,2470.0,2.60623149]
[1747752724085,4.04841909,2470.1,2470.0,8.49035149]
[1747752724386,4.04841909,2470.1,2470.0,8.105]
[1747752724891,4.83221909,2470.1,2470.0,8.105]
[1747752725589,5.38221909,2470.1,2470.0,8.105]
[1747752726790,4.80076669,2469.4,2468.9,0.48164117]
[1747752726991,4.80076669,2469.4,2469.3,25.57]
[1747752727497,4.80076669,2469.4,2469.3,17.465]
[1747752727658,4.80076669,2469.4,2469.3,25.571]
[1747752728396,4.05137138,2468.3,2468.0,0.48164117]
[1747752728696,4.05169968,2468.1,2468.0,0.48164117]
[1747752728860,4.05169968,2468.1,2468.0,26.06464117]
[1747752729189,4.05169968,2468.1,2468.0,28.83209922]
[1747752729601,4.05169968,2468.1,2468.0,28.73673593]
[1747752729755,4.05169968,2468.1,2468.0,32.16889193]
[1747752729959,4.05169968,2468.1,2468.0,28.73673593]
[1747752730260,4.05169968,2468.1,2468.0,31.72905093]
[1747752730479,4.05169968,2468.1,2468.0,31.11853393]
[1747752731102,4.05169968,2468.1,2468.0,30.73225605]
[1747752731792,4.05169968,2468.1,2468.0,28.35045805]
[1747752731993,4.05169968,2468.1,2467.5,1.27324117]
[1747752732177,4.05252066,2467.6,2467.5,1.27324117]
[1747752732377,4.05252066,2467.6,2467.5,34.104451]
[1747752732695,4.05252066,2467.6,2467.5,30.225599]
[1747752733787,4.05235845,2467.7,2467.5,30.225599]
[1747752733988,4.05235845,2467.7,2467.6,13.47309334]
[1747752734176,4.05120725,2468.4,2467.6,13.47309334]
[1747752734177,4.05212903,2467.9,2467.6,13.47309334]
[1747752734377,4.05220252,2467.8,2467.7,15.802341]
[1747752734551,4.05139091,2468.3,2467.7,16.383249]
[1747752734756,4.05218423,2467.9,2467.8,1.94470693]
[1747752734953,4.0522023,2467.8,2467.6,3.06382034]
[1747752735154,4.05209868,2467.9,2467.6,3.06382034]
[1747752735484,4.05209792,2467.9,2467.7,16.383249]
[1747752736202,4.0514876,2468.3,2467.9,0.8062]
[1747752736376,4.0516328,2468.2,2468.0,24.493249]
[1747752736573,4.0516328,2468.2,2468.1,8.58171]
[1747752737087,4.05117265,2468.5,2468.2,0.55]
[1747752737261,4.05135428,2468.4,2468.3,14.161255]
[1747752737457,4.0507168,2468.7,2468.3,27.932551]
[1747752737659,4.04989823,2469.2,2468.6,3.64566327]
[1747752737891,4.04989823,2469.2,2468.8,0.8271]
[1747752737892,4.05003972,2469.2,2468.8,0.8271]
[1747752738195,4.05022276,2469.0,2468.9,16.383249]
[1747752738394,4.04992749,2469.2,2468.9,16.383249]
[1747752739757,4.0500644,2469.1,2469.0,8.11]
[1747752739958,4.04997215,2469.2,2469.0,19.90942722]
[1747752740258,4.04922274,2469.7,2469.1,8.729785]
[1747752740259,4.04979984,2469.3,2469.1,8.729785]
[1747752740483,4.04973069,2469.3,2469.2,18.3151]
[1747752740793,4.04973069,2469.3,2469.2,20.967585]
[1747752741478,4.04973069,2469.3,2469.2,25.594]
[1747752741679,4.04973069,2469.3,2469.2,32.569563]
[1747752742190,4.04973069,2469.3,2469.2,25.594]
[1747752742398,4.04973069,2469.3,2469.2,27.870432]
[1747752743096,4.04973069,2469.3,2469.2,27.869432]
[1747752745793,4.04973069,2469.3,2469.2,25.593]
[1747752746510,4.84024852,2470.2,2469.2,25.593]
[1747752746809,4.84024852,2470.2,2469.4,0.7665]
[1747752746810,4.04948259,2469.5,2469.4,0.7665]
[1747752747101,4.04948259,2469.5,2469.4,4.521866]
[1747752747468,4.04914117,2469.7,2469.4,4.521866]
[1747752747708,4.04843171,2470.1,2469.5,16.383249]
[1747752748004,4.04923874,2469.6,2469.5,0.55]
[1747752748205,4.04923874,2469.6,2469.5,15.910213]
[1747752748367,4.04923874,2469.6,2469.5,16.6668843]
[1747752748568,4.04923874,2469.6,2469.5,13.8008843]
[1747752749005,4.04923874,2469.6,2469.5,12.7683033]
[1747752749204,4.04940271,2469.5,2469.4,1.3165]
[1747752749507,4.04940271,2469.5,2469.4,8.098]
[1747752750092,4.04940271,2469.5,2469.4,13.603414]
[1747752751705,0.7934,2470.5,2469.5,1.3339]
[1747752751911,4.04923874,2469.6,2469.5,0.7839]
[1747752752073,4.04923874,2469.6,2469.5,3.572081]
[1747752752271,4.04923874,2469.6,2469.5,10.886181]
[1747752753114,4.04923874,2469.6,2469.5,8.098]
[1747752753404,4.04956669,2469.4,2469.3,0.7839]
[1747752753575,4.04874691,2469.9,2469.3,18.994201]
[1747752753772,4.80744921,2470.3,2469.4,0.59049026]
[1747752753976,4.04865237,2470.0,2469.7,0.55]
[1747752754172,4.04867378,2470.0,2469.8,24.481249]
[1747752754487,4.04847039,2470.1,2470.0,0.8325]
[1747752754685,4.04847039,2470.1,2470.0,17.215749]
[1747752754908,4.04834137,2470.2,2470.0,17.215749]
[1747752755112,4.04758471,2470.7,2470.1,33.862249]
[1747752755311,4.04798336,2470.4,2470.1,17.479]
[1747752755614,4.04809132,2470.3,2470.1,17.479]
[1747752755801,4.0482552,2470.2,2470.1,17.479]
[1747752756000,4.0482552,2470.2,2470.1,25.577]
[1747752756605,4.0482552,2470.2,2470.1,35.159318]
[1747752757118,4.0482552,2470.2,2470.1,38.07611045]
[1747752757619,4.04820994,2470.3,2470.2,0.7943]
[1747752757791,4.04820994,2470.3,2470.2,14.190231]
[1747752757981,4.04820994,2470.3,2470.2,6.582295]
[1747752758589,4.04820994,2470.3,2470.2,5.39126]
[1747752758913,4.04820994,2470.3,2470.1,17.479]
[1747752758914,4.0482552,2470.2,2470.1,17.479]
[1747752759124,4.0482552,2470.2,2470.1,35.182689]
[1747752759323,4.0482552,2470.2,2470.1,31.158789]
[1747752759630,4.0482552,2470.2,2470.1,28.264126]
[1747752759934,4.0482552,2470.2,2470.1,25.576]
[1747752760092,4.0482552,2470.2,2470.1,17.479]
[1747752760414,4.0482552,2470.2,2470.1,25.575]
[1747752761200,4.0482552,2470.2,2470.1,17.479]
[1747752761405,4.0482552,2470.2,2470.1,25.575]
[1747752765600,4.0482552,2470.2,2470.1,34.483346]
[1747752765812,4.0482552,2470.2,2470.1,33.296486]
[1747752765989,4.0482552,2470.2,2470.1,30.874171]
[1747752766191,4.0482552,2470.2,2470.1,25.575]
[1747752768215,4.8114552,2470.2,2470.1,25.575]
[1747752770808,4.8114552,2470.2,2470.1,17.479]
[1747752770996,4.8114552,2470.2,2470.1,25.575]
[1747752773328,4.0482552,2470.2,2470.1,25.575]
[1747752773541,4.0482552,2470.2,2470.1,17.479]
[1747752774326,4.0482552,2470.2,2470.1,25.576]
[1747752774819,4.0482552,2470.2,2470.1,17.479]
[1747752775020,4.0482552,2470.2,2470.1,25.576]
[1747752775226,4.0482552,2470.2,2470.1,17.479]
[1747752775426,4.0482552,2470.2,2470.1,25.575]
[1747752782456,4.0482552,2470.2,2470.1,25.567]
[1747752784358,4.0482552,2470.2,2470.1,17.479]
[1747752784564,4.0482552,2470.2,2470.1,25.567]
[1747752785970,4.0482552,2470.2,2470.1,17.479]
[1747752786122,4.0482552,2470.2,2470.1,25.567]
[1747752791568,4.0482552,2470.2,2470.1,17.479]
[1747752791771,4.0482552,2470.2,2470.1,25.567]
[1747752798556,4.0482552,2470.2,2470.1,37.396205]
[1747752798746,4.0482552,2470.2,2470.1,34.199972]
[1747752799143,4.0482552,2470.2,2470.1,34.58779397]
[1747752799342,4.0482552,2470.2,2470.1,35.13779397]
[1747752799577,10.11,2471.3,2470.1,35.13779397]
[1747752799578,4.04801999,2470.4,2470.3,0.7663]
[1747752799754,4.04694455,2471.0,2470.5,0.7663]
[1747752799959,4.04764906,2470.6,2470.5,6.8343]
[1747752800167,4.04764906,2470.6,2470.5,19.977511]
[1747752800346,4.04764906,2470.6,2470.5,20.008275]
[1747752800977,4.04764906,2470.6,2470.5,18.722395]
[1747752801146,4.04764906,2470.6,2470.5,20.98867656]
[1747752802180,4.04764906,2470.6,2470.5,21.37563913]
[1747752802476,4.04764906,2470.6,2470.5,7.21963913]
[1747752802682,4.04764906,2470.6,2470.5,9.24026257]
[1747752803085,4.04764906,2470.6,2470.5,1.15326257]
[1747752803384,4.04764906,2470.6,2470.5,8.8533]
[1747752804084,4.04764906,2470.6,2470.5,25.236549]
[1747752804380,4.04764906,2470.6,2470.5,11.168782]
[1747752804583,4.04764906,2470.6,2470.5,13.23833814]
[1747752805683,4.04764906,2470.6,2470.5,5.15133814]
[1747752805975,4.04764906,2470.6,2470.5,17.235782]
[1747752806194,4.04764906,2470.6,2470.5,15.4703]
[1747752806397,4.04754238,2470.7,2470.6,0.77]
[1747752806578,4.04754238,2470.7,2470.6,17.153249]
[1747752806782,4.04754238,2470.7,2470.6,12.179132]
[1747752806962,4.04754238,2470.7,2470.6,14.8674452]
[1747752807166,4.04754238,2470.7,2470.6,27.9559452]
[1747752807586,4.04754238,2470.7,2470.6,13.8019452]
[1747752807777,4.04754238,2470.7,2470.6,14.5796]
[1747752808087,4.04754238,2470.7,2470.6,14.96574482]
[1747752808586,4.04743594,2470.7,2470.6,15.51574482]
[1747752808883,4.04723909,2470.9,2470.7,0.805]
[1747752809248,4.04684828,2471.1,2470.9,0.813]
[1747752809448,4.04558461,2471.9,2471.1,0.55]
[1747752809688,4.04612583,2471.5,2471.4,0.813]
[1747752809851,4.04612583,2471.5,2471.4,6.77805]
[1747752810054,4.04612583,2471.5,2471.4,8.283455]
[1747752810759,4.04568002,2471.8,2471.4,8.283455]
[1747752810958,4.04503968,2472.2,2471.6,0.8049]
[1747752811278,6.88742683,2472.5,2471.9,0.7539]
[1747752811279,6.07652683,2472.5,2471.9,0.7539]
[1747752811486,4.04530744,2472.0,2471.9,0.7539]
[1747752811658,4.04530744,2472.0,2471.9,18.2239]
[1747752812162,4.04530744,2472.0,2471.9,25.06284]
[1747752812370,4.04530744,2472.0,2471.9,21.874191]
[1747752812958,4.04530744,2472.0,2471.9,18.2239]
[1747752813291,4.04530744,2472.0,2471.9,25.543]
[1747752813888,4.04530744,2472.0,2471.9,25.542]
[1747752815195,4.04530744,2472.0,2471.9,17.47]
[1747752815364,4.04530744,2472.0,2471.9,25.542]
[1747752819004,4.04530744,2472.0,2471.9,27.37624319]
[1747752819398,4.04530744,2472.0,2471.9,43.75949219]
[1747752819599,4.04530744,2472.0,2471.9,42.60992519]
[1747752819897,4.04530744,2472.0,2471.9,41.42312519]
[1747752820269,4.04516616,2472.1,2472.0,0.8256]
[1747752820470,4.04516616,2472.1,2472.0,7.68991788]
[1747752820904,4.04516616,2472.1,2472.0,18.49597588]
[1747752821401,4.04516616,2472.1,2472.0,17.21120188]
[1747752821982,4.04504531,2472.2,2472.0,17.21120188]
[1747752822182,4.04383071,2473.0,2472.1,19.916756]
[1747752822183,4.04480643,2472.4,2472.1,19.916756]
[1747752822391,4.04473255,2472.4,2472.3,0.7924]
[1747752823504,4.04498017,2472.2,2472.1,0.8143]
[1747752823669,4.04498017,2472.2,2472.1,14.9483]
[1747752824005,4.04498017,2472.2,2472.1,19.688411]
[1747752825102,4.04476657,2472.4,2472.1,19.688411]
[1747752825305,4.04476657,2472.4,2472.2,16.68865139]
[1747752825496,4.04449915,2472.5,2472.3,16.383249]
[1747752825999,4.04435547,2472.6,2472.3,16.383249]
[1747752826000,4.04465296,2472.4,2472.3,16.383249]
[1747752826206,4.04437404,2472.6,2472.3,16.383249]
[1747752826369,4.04458964,2472.5,2472.2,2.35907739]
[1747752826567,4.04458964,2472.5,2472.3,18.47804908]
[1747752826771,4.04458964,2472.5,2472.4,16.383249]
[1747752827804,4.04427787,2472.7,2472.4,16.383249]
[1747752827978,4.04427787,2472.7,2472.4,1.363]
[1747752828180,4.04448938,2472.5,2472.4,1.363]
[1747752828393,4.04448938,2472.5,2472.4,1.70878001]
[1747752828906,4.04448938,2472.5,2472.4,15.45350701]
[1747752829474,4.04448938,2472.5,2472.4,9.68175401]
[1747752829678,4.04448938,2472.5,2472.4,7.48110101]
[1747752829870,4.04448938,2472.5,2472.4,21.61310101]
[1747752831014,4.85556281,2472.9,2472.4,21.61310101]
[1747752831188,4.0440811,2472.8,2472.5,2.1613101]
[1747752831392,4.0439063,2472.9,2472.6,16.383249]
[1747752831593,4.04411734,2472.8,2472.5,2.1613101]
[1747752831789,4.0430177,2473.4,2472.8,0.55]
[1747752831994,4.04374935,2473.0,2472.9,25.528]
[1747752832191,4.04374935,2473.0,2472.9,28.15697]
[1747752832401,4.04367165,2473.0,2472.9,28.15697]
[1747752833113,4.85457929,2473.5,2472.9,28.15697]
[1747752833313,4.04342818,2473.2,2472.9,28.15697]
[1747752833612,4.04269081,2473.6,2473.0,17.153549]
[1747752833821,4.04334465,2473.2,2473.1,3.90236288]
[1747752833980,4.04334465,2473.2,2473.1,10.98536188]
[1747752835028,4.04324804,2473.3,2473.1,10.98536188]
[1747752835234,4.04324804,2473.3,2473.2,11.823373]
[1747752835613,4.04334465,2473.2,2473.1,3.90236288]
[1747752835785,4.04334465,2473.2,2473.1,12.411054]
[1747752835982,4.04334465,2473.2,2473.1,12.03998]
[1747752837188,4.04334465,2473.2,2473.1,18.10098]
[1747752838428,4.04334465,2473.2,2473.1,17.125397]
[1747752838928,4.04334465,2473.2,2473.1,14.128]
[1747752839224,4.04350814,2473.1,2473.0,0.7703]
[1747752839396,4.04350814,2473.1,2473.0,14.8863]
[1747752839598,4.04367165,2473.0,2472.9,17.46]
[1747752839823,4.04367165,2473.0,2472.9,25.515]
[1747752839824,4.83527165,2473.0,2472.9,25.515]
[1747752842753,4.83527165,2473.0,2472.9,17.46]
[1747752843045,4.83527165,2473.0,2472.9,25.515]
[1747752844407,4.83527165,2473.0,2472.9,17.46]
[1747752844747,4.83527165,2473.0,2472.9,25.515]
[1747752844913,9.07707168,2473.0,2472.9,17.46]
[1747752845114,4.83527165,2473.0,2472.9,25.515]
[1747752846726,5.24623221,2473.0,2472.9,25.515]
[1747752847629,4.83527165,2473.0,2472.9,25.515]
[1747752848339,4.83527165,2473.0,2472.9,17.46]
[1747752848534,4.83527165,2473.0,2472.9,25.516]
[1747752854206,4.04367165,2473.0,2472.9,25.516]
[1747752854412,4.04367165,2473.0,2472.9,28.0676]
[1747752854641,4.04367165,2473.0,2472.9,28.8644]
[1747752854910,4.04367165,2473.0,2472.9,20.8084]
[1747752855148,4.04367165,2473.0,2472.9,17.46]
[1747752855454,4.04367165,2473.0,2472.9,25.516]
[1747752859345,4.04367165,2473.0,2472.9,41.9978]
[1747752859528,4.04350814,2473.1,2472.9,41.9978]
[1747752859529,4.04354429,2473.1,2473.0,0.55]
[1747752859722,4.04354429,2473.1,2473.0,17.744249]
[1747752860052,4.04354429,2473.1,2473.0,21.64661188]
[1747752860254,4.04354429,2473.1,2473.0,21.09661188]
[1747752860417,4.04354429,2473.1,2473.0,17.38419588]
[1747752861318,4.04354429,2473.1,2473.0,15.86362188]
[1747752861725,4.04350814,2473.1,2473.0,8.35862188]
[1747752862035,4.04343726,2473.2,2473.0,16.41362188]
[1747752862235,4.04343726,2473.2,2473.1,19.73854088]
[1747752862560,4.04343726,2473.2,2473.1,13.85474188]
[1747752862765,4.04343726,2473.2,2473.1,14.64394188]
[1747752863527,4.04343726,2473.2,2473.1,15.19394188]
[1747752863953,4.04343726,2473.2,2473.1,14.89388188]
[1747752864665,4.04343726,2473.2,2473.1,25.95592288]
[1747752864858,4.04343726,2473.2,2473.1,26.34115263]
[1747752865443,4.04343726,2473.2,2473.1,13.13079263]
[1747752865662,4.04343726,2473.2,2473.1,11.97115263]
[1747752865966,4.04343726,2473.2,2473.1,23.02515263]
[1747752866170,4.04343726,2473.2,2473.1,20.49439263]
[1747752867036,4.04343726,2473.2,2473.1,20.10916288]
[1747752868588,4.04343726,2473.2,2473.1,14.95536288]
[1747752868747,4.04343726,2473.2,2473.1,11.053]
[1747752868952,4.04367165,2473.0,2472.9,17.46]
[1747752869260,4.04367165,2473.0,2472.9,25.513]
[1747752869637,4.04367165,2473.0,2472.9,41.896249]
[1747752869837,4.04367165,2473.0,2472.9,36.78398988]
[1747752870165,4.04367165,2473.0,2472.9,29.41536288]
[1747752870570,4.04367165,2473.0,2472.9,25.513]
[1747752871231,4.04367165,2473.0,2472.9,25.502]
[1747752873072,4.04367165,2473.0,2472.9,17.46]
[1747752873255,4.04367165,2473.0,2472.9,25.502]
[1747752873467,4.85037165,2473.0,2472.9,25.502]
[1747752873663,4.04367165,2473.0,2472.9,25.502]
[1747752875348,4.04367165,2473.0,2472.9,17.46]
[1747752875549,4.04367165,2473.0,2472.9,25.502]
[1747752876741,4.04367165,2473.0,2472.9,17.46]
[1747752876941,4.04367165,2473.0,2472.9,25.502]
[1747752878262,4.04367165,2473.0,2472.9,28.13522]
[1747752878473,4.04367165,2473.0,2472.9,25.502]
[1747752879376,4.04367165,2473.0,2472.9,17.46]
[1747752879574,4.04367165,2473.0,2472.9,25.502]
[1747752880250,4.82937165,2473.0,2472.9,25.502]
[1747752883369,4.82937165,2473.0,2472.9,17.46]
[1747752883785,4.82937165,2473.0,2472.9,25.503]
[1747752886759,4.04367165,2473.0,2472.9,25.503]
[1747752887063,4.04367165,2473.0,2472.9,28.0533]
[1747752887978,4.04367165,2473.0,2472.9,25.503]
[1747752888476,4.80497165,2473.0,2472.9,25.503]
[1747752889077,4.04367165,2473.0,2472.9,25.503]
[1747752889599,4.82467165,2473.0,2472.9,25.503]
[1747752902517,4.04367165,2473.0,2472.9,25.503]
[1747752903420,4.04367165,2473.0,2472.9,25.95669506]
[1747752903636,4.04367165,2473.0,2472.9,43.11234406]
[1747752903783,4.0436125,2473.1,2473.0,0.7724]
[1747752904099,4.04338087,2473.2,2473.1,1.3224]
[1747752904281,4.04319567,2473.3,2473.2,1.3224]
[1747752904481,4.04318117,2473.3,2473.2,18.2932753]
[1747752904906,4.04318117,2473.3,2473.2,24.58175334]
[1747752905082,4.04318117,2473.3,2473.2,25.36155334]
[1747752905417,4.04310914,2473.4,2473.3,0.8096]
[1747752905717,4.04310914,2473.4,2473.3,25.224849]
[1747752905913,4.04310914,2473.4,2473.3,28.02274743]
[1747752906119,4.04310914,2473.4,2473.3,28.85314743]
[1747752906414,4.04280613,2473.6,2473.5,0.8304]
[1747752907095,4.04280613,2473.6,2473.5,3.307262]
[1747752907297,4.04280613,2473.6,2473.5,5.64980904]
[1747752907595,4.04280613,2473.6,2473.5,11.89179998]
[1747752909013,4.04118476,2474.6,2473.7,0.7543]
[1747752909214,4.04236397,2473.8,2473.7,0.7543]
[1747752909514,4.04236397,2473.8,2473.7,31.524026]
[1747752909697,4.04236397,2473.8,2473.7,31.74975388]
[1747752909881,4.04236397,2473.8,2473.7,34.97972927]
[1747752910403,4.04236397,2473.8,2473.7,32.40226727]
[1747752910721,4.04215845,2474.0,2473.7,29.69700327]
[1747752910916,4.04155566,2474.3,2473.9,0.7875]
[1747752911216,4.04170302,2474.3,2474.2,0.55]
[1747752911418,4.04170302,2474.3,2474.2,11.14243879]
[1747752911718,4.04170302,2474.3,2474.2,24.48103479]
[1747752912014,4.04170302,2474.3,2474.2,15.38559279]
[1747752913385,4.04170302,2474.3,2474.2,15.38459279]
[1747752914516,4.04170302,2474.3,2474.2,7.35559279]
[1747752914723,4.04170302,2474.3,2474.2,8.8165]
[1747752915534,4.04170302,2474.3,2473.7,20.68597539]
[1747752915535,4.04236397,2473.8,2473.7,20.68597539]
[1747752915736,4.04236397,2473.8,2473.7,50.77939039]
[1747752916036,4.04236397,2473.8,2473.7,37.24139039]
[1747752916204,4.04236397,2473.8,2473.7,33.42388226]
[1747752916636,4.04236397,2473.8,2473.7,33.19901639]
[1747752917634,4.04105714,2474.6,2473.7,33.19901639]
[1747752917841,4.04236397,2473.8,2473.7,26.8174]
[1747752918002,4.04173824,2474.2,2473.7,26.8174]
[1747752918206,4.04228621,2473.9,2473.7,26.8174]
[1747752918436,4.04228621,2473.9,2473.8,9.852943]
[1747752918611,4.04228621,2473.9,2473.8,13.75530588]
[1747752919038,4.04236397,2473.8,2473.7,17.456]
[1747752919533,4.04236397,2473.8,2473.7,25.484]
[1747752920643,4.80736397,2473.8,2473.7,17.456]
[1747752920807,4.80736397,2473.8,2473.7,25.484]
[1747752927045,4.80736397,2473.8,2473.7,17.456]
[1747752927233,4.80736397,2473.8,2473.7,25.485]
[1747752934977,4.04236397,2473.8,2473.7,25.485]
[1747752935277,4.04236397,2473.8,2473.7,28.11046]
[1747752936514,4.04236397,2473.8,2473.7,17.456]
[1747752936660,4.04236397,2473.8,2473.7,25.474]
[1747752940595,4.04236397,2473.8,2473.7,43.204049]
[1747752940975,4.04236397,2473.8,2473.7,43.42973187]
[1747752941789,4.04236397,2473.8,2473.7,37.61807987]
[1747752941986,4.04236397,2473.8,2473.7,38.00323094]
[1747752942297,4.04111111,2474.6,2473.7,38.00323094]
[1747752942298,4.04089384,2474.7,2474.0,0.55]
[1747752942458,4.04187381,2474.1,2474.0,1.3475]
[1747752942861,4.04024079,2475.1,2474.2,0.55]
[1747752943073,4.04122044,2474.5,2474.4,0.7975]
[1747752943397,4.04122044,2474.5,2474.4,1.70151829]
[1747752944095,4.04122044,2474.5,2474.4,9.71751829]
[1747752944665,4.04112528,2474.6,2474.4,13.87828729]
[1747752944864,4.04122044,2474.5,2474.4,10.26751829]
[1747752945310,4.04109361,2474.6,2474.5,0.8228]
[1747752945487,4.04109361,2474.6,2474.5,2.42899638]
[1747752946777,4.04109361,2474.6,2474.5,2.20339523]
[1747752947098,4.04109361,2474.6,2474.5,9.10532423]
[1747752947298,4.04109361,2474.6,2474.5,9.39559523]
[1747752947462,4.04203718,2474.0,2473.9,0.8251]
[1747752947666,4.04203718,2474.0,2473.9,8.8401]
[1747752947992,4.04203718,2474.0,2473.9,9.06561442]
[1747752948195,4.04203718,2474.0,2473.9,8.24051442]
[1747752948401,4.04203718,2474.0,2473.9,10.73025836]
[1747752949601,4.04203718,2474.0,2473.9,10.50474394]
[1747752950905,4.04203718,2474.0,2473.7,18.2752]
[1747752950906,4.04236397,2473.8,2473.7,18.2752]
[1747752951076,4.04236397,2473.8,2473.7,17.456]
[1747752951400,4.04236397,2473.8,2473.7,25.471]
[1747752953615,4.85326397,2473.8,2473.7,25.472]
[1747752956816,4.04236397,2473.8,2473.7,25.472]
[1747752960427,4.04236397,2473.8,2473.7,17.456]
[1747752960601,4.04236397,2473.8,2473.7,25.459]
[1747752961440,4.04236397,2473.8,2473.7,17.456]
[1747752961740,4.04236397,2473.8,2473.7,25.46]
[1747752962748,4.04236397,2473.8,2473.7,17.456]
[1747752963046,4.04236397,2473.8,2473.7,25.46]
[1747752965541,4.04236397,2473.8,2473.7,17.456]
[1747752965709,4.04236397,2473.8,2473.7,25.46]
[1747752967446,4.84726397,2473.8,2473.7,25.46]
[1747752968949,4.04236397,2473.8,2473.7,25.46]
[1747752973117,4.04236397,2473.8,2473.7,28.8013]
[1747752974318,4.04236397,2473.8,2473.7,25.46]
[1747752979962,4.04236397,2473.8,2473.7,17.456]
[1747752980158,4.04236397,2473.8,2473.7,25.46]
[1747752980659,4.04236397,2473.8,2473.7,26.253]
[1747752981065,4.04236397,2473.8,2473.7,26.4797515]
[1747752981361,4.04236397,2473.8,2473.7,27.12858421]
[1747752981674,4.04236397,2473.8,2473.7,27.12855537]
[1747752981875,4.04236397,2473.8,2473.7,27.67855537]
[1747752982165,4.04236397,2473.8,2473.7,35.52553937]
[1747752982460,4.04236397,2473.8,2473.7,34.12977414]
[1747752982760,4.04236397,2473.8,2473.7,19.51151614]
[1747752982967,4.04236397,2473.8,2473.7,27.51551614]
[1747752984458,4.04236397,2473.8,2473.7,26.86668343]
[1747752984953,4.04236397,2473.8,2473.7,26.47972266]
[1747752989157,4.04236397,2473.8,2473.7,25.68672266]
[1747752989862,4.04236397,2473.8,2473.7,25.46]
[1747752990973,4.04236397,2473.8,2473.7,25.445]
[1747752996377,4.04236397,2473.8,2473.7,17.456]
[1747752996681,4.04236397,2473.8,2473.7,25.445]
[1747752997878,4.04236397,2473.8,2473.7,25.67176268]
[1747753000567,4.04236397,2473.8,2473.7,18.06996646]
[1747753000877,4.04236397,2473.8,2473.7,26.05896646]
[1747753001780,4.04236397,2473.8,2473.7,25.67176268]
[1747753004776,4.04236397,2473.8,2473.7,25.445]
[1747753008973,4.84516397,2473.8,2473.7,25.445]
[1747753012303,7.05691053,2473.8,2473.7,25.445]
[1747753012599,17.16691053,2473.8,2473.7,25.445]
[1747753013373,17.56637086,2473.8,2473.7,25.445]
[1747753013786,14.96286397,2473.8,2473.7,25.445]